[Event "Charlotte CC Fall IM-A 2024"]
[Site "Charlotte"]
[Date "2024.11.24"]
[Round "4.2"]
[White "Wang, Isaac"]
[Black "Asavasaetakul, Chawit"]
[Result "1-0"]
[Annotator "RC"]
[ECO "D17"]
[WhiteElo "2328"]
[BlackElo "2009"]
[PlyCount "79"]
[EventDate "2024.11.22"]
[EventType "tourn"]
[EventCountry "USA"]
[SourceTitle "playchess.com"]
[Source "ChessBase"]
[SourceQuality "1"]
[TimeControl "5400+30"]

1. d4 {[%emt 0:00:01]} d5 {[%emt 0:04:16]} 2. c4 {[%emt 0:00:05]} c6 {[%emt 0:00:03]} 3. Nc3 {[%emt 0:00:05]} Nf6 {[%emt 0:00:06]} 4. Nf3 {[%emt 0:00:02]} dxc4 {[%emt 0:00:07]} 5. a4 {[%emt 0:00:05]} Bf5 {[%emt 0:00:24]} 6. Ne5 {[%emt 0:00:05]} Nbd7 {[%emt 0:00:48]} 7. Nxc4 {[%emt 0:00:06]} Qc7 {[%emt 0:00:33]} 8. g3 {[%emt 0:00:44]} e5 {[%emt 0:01:32]} 9. dxe5 {[%emt 0:00:06]} Nxe5 {[%emt 0:00:03]} 10. Bf4 {[%emt 0:00:08]} Nfd7 {[%emt 0:00:38]} 11. Bg2 {[%emt 0:01:34]} g5 {[%emt 0:10:51]} 12. Nxe5 {[%emt 0:01:03]} gxf4 {[%emt 0:00:25]} 13. Nxd7 {[%emt 0:00:07]} Qxd7 {[%emt 0:00:38]} 14. Qxd7+ {[%emt 0:00:50]} Kxd7 {[%emt 0:02:50]} 15. O-O-O+ {[%emt 0:02:35]} Kc7 {[%emt 0:00:21]} 16. gxf4 {[%emt 0:00:45]} Bc5 {[%emt 0:05:40]} 17. e3 {[%emt 0:07:15]} a6 {[%emt 0:04:19]} 18. Nd5+ {[%emt 0:12:28]} cxd5 {[%emt 0:12:55]} 19. Rxd5 {[%emt 0:00:06]} Bxe3+ {[%emt 0:00:42]} 20. fxe3 {[%emt 0:00:06]} Be6 {[%emt 0:02:01]} 21. Rc5+ {[%emt 0:05:07]} Kb6 {[%emt 0:00:51]} 22. b4 {[%emt 0:03:35]} Rac8 {[%emt 0:00:22]} 23. a5+ {[%emt 0:00:22]} Ka7 {[%emt 0:00:03]} 24. Kd2 {[%emt 0:01:25]} Rhd8+ {[%emt 0:01:20]} 25. Kc3 {[%emt 0:00:22]} b6 {[%emt 0:04:34]} 26. axb6+ {[%emt 0:00:33]} Kxb6 {[%emt 0:00:02]} 27. Ra1 {[%emt 0:00:37]} Bd7 {[%emt 0:09:19]} 28. Rxc8 {[%emt 0:01:18]} Rxc8+ {[%emt 0:00:23]} 29. Kd4 {[%emt 0:02:11]} Rc2 {[%emt 0:07:52]} 30. Bd5 {[%emt 0:01:26]} Rd2+ {[%emt 0:03:20]} 31. Ke5 {[%emt 0:01:35]} f6+ {[%emt 0:03:46]} 32. Kd6 {[%emt 0:00:52]} Bc6 {[%emt 0:09:29]} 33. Ra5 {[%emt 0:02:07]} Bxd5 {[%emt 0:01:26]} 34. Rxd5 {[%emt 0:00:01]} Rxh2 {[%emt 0:00:08]} 35. e4 {[%emt 0:01:27]} Re2 {[%emt 0:03:08]} 36. e5 {[%emt 0:02:11]} fxe5 {[%emt 0:02:57]} 37. fxe5 {[%emt 0:00:32]} h5 {[%emt 0:01:52]} 38. Rd4 {[%emt 0:01:37]} Rc2 {[%emt 0:04:27]} 39. e6 {[%emt 0:00:28]} Rc6+ {[%emt 0:00:28]} 40. Kd7 {[%emt 0:00:36]} 1-0

[Event "Charlotte CC Fall IM-A 2024"]
[Site "Charlotte"]
[Date "2024.11.24"]
[Round "4.3"]
[White "Girsh, Daniel"]
[Black "Macovei, Andrei"]
[Result "0-1"]
[Annotator "TA"]
[ECO "A34"]
[WhiteElo "2180"]
[BlackElo "2476"]
[PlyCount "106"]
[EventDate "2024.11.22"]
[EventType "tourn"]
[EventCountry "USA"]
[SourceTitle "playchess.com"]
[Source "ChessBase"]
[SourceQuality "1"]
[TimeControl "5400+30"]

{[%evp 21,106,0,-3,-10,0,-30,-30,-27,-16,-12,0,-27,0,0,33,33,134,111,152,153,153,155,160,143,150,148,156,130,157,161,144,109,111,106,143,148,154,154,153,158,152,114,109,114,124,41,37,0,0,0,18,0,0,0,0,0,0,-8,-8,-6,0,0,0,-9,-8,-272,-210,-325,-325,-325,-325,-324,-324,-790,-790,-29978,-29979,-29976,-29977,-29977,-29978,-29977,-29979,-29979,-29980,-29978,-29978]} 1. Nf3 {[%emt 0:00:12]} Nf6 {[%emt 0:06:46]} 2. c4 {[%emt 0:00:39]} c5 {[%emt 0:01:40]} 3. Nc3 {[%emt 0:03:51]} Nc6 {[%emt 0:00:19]} 4. g3 {[%emt 0:00:44]} d5 {[%emt 0:00:49]} 5. cxd5 {[%emt 0:00:07]} Nxd5 {[%emt 0:00:02]} 6. Bg2 {[%emt 0:00:08]} Nc7 {[%emt 0:00:48]} 7. O-O {[%emt 0:01:03]} e5 {[%emt 0:00:47]} 8. d3 {[%emt 0:00:13]} Be7 {[%emt 0:01:03]} 9. Nd2 {[%emt 0:00:13]} Bd7 {[%emt 0:12:33]} 10. Nc4 {[%emt 0:05:34]} f6 {[%emt 0:02:15]} 11. a4 {[%emt 0:00:37]} O-O {[%emt 0:12:01]} 12. Be3 {[%emt 0:08:22]} Be6 {[%emt 0:11:40]} 13. Bxc6 {[%emt 0:09:19]} bxc6 {[%emt 0:02:05]} 14. Na5 {[%emt 0:01:36] Black has an edge.} Qd7 {[%emt 0:14:08]} 15. Ne4 {[%emt 0:09:42]} Bh3 {[%emt 0:05:15]} 16. Qb3+ {[%emt 0:09:28]} (16. Nxc5 $2 Bxc5 (16... Qd5 17. Qb3 $17) 17. Bxc5 Qd5 $17) 16... Qd5 {[%emt 0:00:11]} 17. Rfb1 {[%emt 0:10:34]} Ne6 {[%emt 0:03:29]} 18. Qb7 {[%emt 0:03:34][%csl LRc6,LRe7]} f5 {[%emt 0:04:02]} (18... Rfe8 $1 $14) 19. Qxc6 $16 {[%emt 0:02:22]} (19. Nxc6 $6 Kh8 20. Qxe7 Qxc6 $14) 19... Rfd8 {[%emt 0:07:42][%cal Bf8d8,Bd8d5,Bd5d7,Bd7b7][%mdl 32] [#]} 20. Qxd5 {[%emt 0:01:24]} Rxd5 {[%emt 0:00:01]} 21. Nc6 $1 {[%emt 0:00:10]} Rd7 {[%emt 0:00:40]} 22. Nxe5 {[%emt 0:04:40] A dynamic duo of knights.} Rb7 {[%emt 0:00:10]} 23. Nc3 {[%emt 0:01:20]} g5 {[%emt 0:01:47]} 24. Nd5 {[%emt 0:00:51]} Bf8 {[%emt 0:00:39]} 25. f4 {[%emt 0:03:37]} Bg7 {[%emt 0:00:59]} 26. Kf2 {[%emt 0:23:10]} Rd8 {[%emt 0:01:07]} 27. Nc3 {[%emt 0:00:00]} Bxe5 {[%emt 0:01:07]} 28. fxe5 {[%emt 0:00:00]} a6 {[%emt 0:01:57]} 29. a5 {[%emt 0:00:00]} f4 {[%emt 0:01:06]} 30. gxf4 {[%emt 0:00:00]} gxf4 {[%emt 0:00:01]} 31. Bd2 {[%emt 0:00:00]} c4 {[%emt 0:00:12]} 32. Ne4 {[%emt 0:00:00]} cxd3 {[%emt 0:00:22]} 33. exd3 {[%emt 0:00:00]} ({White should play} 33. Rg1+ $16 Kf8 34. Bc3) 33... Rxd3 $14 {[%emt 0:01:14] [#] ...Bf5 is the strong threat.} 34. Bc3 {[%emt 0:00:00]} (34. Rg1+ $5 Kf8 35. Bc3 $16) 34... Rg7 {[%emt 0:02:19]} 35. Rg1 {[%emt 0:00:00] Wards off Rg2+} Bf5 {[%emt 0:00:12]} 36. Rxg7+ {[%emt 0:00:00]} Kxg7 {[%emt 0:00:36]} 37. Rg1+ {[%emt 0:00:00]} Kh6 $1 {[%emt 0:00:43]} 38. Nf6 {[%emt 0:00:00]} Ng5 {[%emt 0:01:38] Threatens to win with ...Nh3+.} 39. Ng8+ {[%emt 0:00:00]} Kh5 {[%emt 0:00:06] aiming for ...Nh3+.} 40. Nf6+ {[%emt 0:00:00]} Kh6 {[%emt 0:02:21]} 41. Ng8+ {[%emt 0:00:00]} Kh5 {[%emt 0:00:37] Hoping for ...Nh3+.} 42. Nf6+ {[%emt 0:00:00]} Kh4 {[%emt 0:02:00] Strongly threatening ...Nh3+.} 43. Ra1 $2 {[%emt 0:02:36][%mdl 8192]} (43. Be1 $1 $11 {and White is okay.} Nf3 44. Rg7) 43... Kh3 {[%emt 0:00:44]} 44. Ra3 {[%emt 0:02:57]} (44. Rg1 {is a better defense.} Rf3+ 45. Ke1 Re3+ (45... Kxh2 $2 {is the wrong capture.} 46. Rxg5 Be6 47. Bd2 $18) 46. Kd1 (46. Kf2 $2 Kh4 $19)) 44... Kxh2 $19 {[%emt 0:00:15]} ({Worse is} 44... Rf3+ 45. Kg1 $11) 45. Bb4 {[%emt 0:01:33]} Nh3+ {[%emt 0:00:50]} 46. Ke1 {[%emt 0:00:43]} f3 {[%emt 0:01:04]} 47. Ng4+ {[%emt 0:01:40]} (47. Bc5 Rxa3 48. bxa3) 47... Kg3 $1 {[%emt 0:00:08] ( -> ...Rxa3)} 48. Ne3 {[%emt 0:00:03]} f2+ {[%emt 0:01:20] Black mates.} 49. Kf1 {[%emt 0:00:09]} Be4 {[%emt 0:00:36]} 50. Be1 {[%emt 0:01:47]} fxe1=Q+ {[%emt 0:01:04]} 51. Kxe1 {[%emt 0:01:02]} Rxa3 {[%emt 0:00:00]} 52. bxa3 {[%emt 0:00:00]} Ng5 {[%emt 0:00:01]} 53. Ke2 {[%emt 0:00:00]} h5 {[%emt 0:00:17] Quite a comeback for Black.   Weighted Error Value: White=0.41/Black=0.10 (very precise) .  Loses game:     	White=1     	---        Mistake:       	White=3     	Black=1      Inaccurate:     	White=4     	Black=4      OK:         	White=13    	Black=8      Best:        	White=4     	Black=7      Strong:       	White=1     	Black=2} 0-1

[Event "Charlotte CC Fall IM-A 2024"]
[Site "Charlotte"]
[Date "2024.11.24"]
[Round "4.4"]
[White "Atwell, Rose"]
[Black "Tang, Dylan"]
[Result "1/2-1/2"]
[Annotator "RC"]
[ECO "C67"]
[WhiteElo "2164"]
[BlackElo "2192"]
[PlyCount "66"]
[EventDate "2024.11.22"]
[EventType "tourn"]
[EventCountry "USA"]
[SourceTitle "playchess.com"]
[Source "ChessBase"]
[SourceQuality "1"]
[TimeControl "5400+30"]

1. e4 {[%emt 0:00:01]} e5 {[%emt 0:01:38]} 2. Nf3 {[%emt 0:00:09]} Nc6 {[%emt 0:00:04]} 3. Bb5 {[%emt 0:00:05]} Nf6 {[%emt 0:00:05]} 4. O-O {[%emt 0:00:10]} Nxe4 {[%emt 0:01:20]} 5. Re1 {[%emt 0:00:07]} Nd6 {[%emt 0:00:05]} 6. Nxe5 {[%emt 0:00:08]} Nxe5 {[%emt 0:00:12]} 7. Rxe5+ {[%emt 0:00:08]} Be7 {[%emt 0:00:03]} 8. Bf1 {[%emt 0:00:26]} O-O {[%emt 0:00:16]} 9. d4 {[%emt 0:01:23]} Bf6 {[%emt 0:00:13]} 10. Re1 {[%emt 0:00:16]} Nf5 {[%emt 0:00:08]} 11. c3 {[%emt 0:02:31]} d5 {[%emt 0:00:40]} 12. Bf4 {[%emt 0:02:38]} c6 {[%emt 0:06:07]} 13. Nd2 {[%emt 0:02:45]} Nh4 {[%emt 0:05:33]} 14. a4 {[%emt 0:04:33]} a5 {[%emt 0:04:10]} 15. Qb3 {[%emt 0:06:17]} Bg5 {[%emt 0:05:23]} 16. Bxg5 {[%emt 0:02:26]} Qxg5 {[%emt 0:00:11]} 17. Re3 {[%emt 0:00:29]} Nf5 {[%emt 0:09:59]} 18. Nf3 {[%emt 0:02:22]} Qd8 {[%emt 0:01:15]} 19. Ree1 {[%emt 0:06:00]} Nd6 {[%emt 0:04:46]} 20. Bd3 {[%emt 0:01:42]} Rb8 {[%emt 0:05:24]} 21. Qc2 {[%emt 0:04:26]} g6 {[%emt 0:01:14]} 22. Qd2 {[%emt 0:04:19]} Bf5 {[%emt 0:02:01]} 23. Ne5 {[%emt 0:09:57]} f6 {[%emt 0:03:46]} 24. Bxf5 {[%emt 0:01:36]} Nxf5 {[%emt 0:04:32]} 25. Nd3 {[%emt 0:02:45]} Qd6 {[%emt 0:04:36]} 26. Nc5 {[%emt 0:04:25]} b6 {[%emt 0:00:41]} 27. Re6 {[%emt 0:01:48]} Qd8 {[%emt 0:00:25]} 28. Nd3 {[%emt 0:02:19]} Qd7 {[%emt 0:01:05]} 29. Rae1 {[%emt 0:03:36]} Rbe8 {[%emt 0:00:32]} 30. Rxe8 {[%emt 0:09:47]} Rxe8 {[%emt 0:00:03]} 31. Kf1 {[%emt 0:01:52]} Nd6 {[%emt 0:03:54]} 32. Rxe8+ {[%emt 0:02:20]} Qxe8 {[%emt 0:00:03]} 33. Qe2 {[%emt 0:03:03]} Kf7 {[%emt 0:01:42]} 1/2-1/2

[Event "Charlotte CC Fall IM-A 2024"]
[Site "Charlotte"]
[Date "2024.11.24"]
[Round "4.5"]
[White "Tsay, Vincent"]
[Black "Bilych, Oleksii"]
[Result "0-1"]
[Annotator "TA"]
[ECO "E01"]
[WhiteElo "2309"]
[BlackElo "2429"]
[PlyCount "116"]
[EventDate "2024.11.22"]
[EventType "tourn"]
[EventCountry "USA"]
[SourceTitle "playchess.com"]
[Source "ChessBase"]
[SourceQuality "1"]
[TimeControl "5400+30"]

{[%evp 20,116,20,13,14,24,8,0,0,-85,-108,-92,-23,-195,-87,-85,-73,-55,-69,-95,-7,-93,-102,-243,0,0,0,0,0,-8,0,-203,-198,-201,-208,-208,-203,-209,-201,-211,-212,-229,-229,-249,-249,-242,-231,-231,-238,-245,-245,-253,-253,-256,-263,-268,-268,-255,-254,-329,-273,-315,-267,-434,-401,-510,-432,-430,-423,-601,-455,-455,-455,-461,-461,-434,-344,-584,-580,-538,-511,-528,-518,-29973,-29975,-29974,-29975,-29973,-29975,-29978,-29979,-29979,-29980,-29980,-29981,-29979,-29979,-29988,-29989]} 1. d4 {[%emt 0:00:06]} Nf6 {[%emt 0:00:15]} 2. c4 {[%emt 0:00:03]} e6 {[%emt 0:00:05]} 3. g3 {[%emt 0:00:25]} c5 {[%emt 0:00:48]} 4. Nf3 {[%emt 0:00:48]} cxd4 {[%emt 1:31:22]} 5. Nxd4 {[%emt 0:00:19]} d5 {[%emt 0:00:30]} 6. Bg2 {[%emt 0:01:01]} e5 {[%emt 0:00:30]} 7. Nf3 {[%emt 0:01:24]} d4 {[%emt 0:00:00]} 8. O-O {[%emt 0:00:43]} Nc6 {[%emt 0:01:00]} 9. e3 {[%emt 0:00:58]} Be7 {[%emt 0:00:00]} 10. exd4 {[%emt 0:00:37]} exd4 {[%emt 0:01:00]} 11. Bf4 {[%emt 0:00:48]} Be6 {[%emt 0:00:30]} 12. Ne5 {[%emt 0:06:04]} Rc8 {[%emt 0:00:30]} 13. Nd2 {[%emt 0:06:38]} O-O {[%emt 0:00:00] The position is equal.} 14. Qb3 {[%emt 0:02:27]} (14. Ndf3 $11 {keeps the balance.}) 14... Nxe5 $17 {[%emt 0:01:00]} 15. Bxe5 {[%emt 0:00:29]} Ng4 {[%emt 0:00:00]} (15... b5 $1 $17 {Strongly threatening ...Ng4.} 16. Bxf6 (16. Qxb5 $2 Rc5 $19) 16... Bxf6 17. Qxb5 Rb8) 16. Rfe1 $2 {[%emt 0:09:59]} (16. Rae1 $11) 16... Qa5 {[%emt 0:00:00]} (16... b5 $1 $19 {[%cal Rb5c4] has better winning chances.} 17. Bf4 (17. Qxb5 $2 {too greedy.} Rc5 $19) 17... bxc4) 17. Nf3 {[%emt 0:01:53]} Bxc4 {[%emt 0:00:00] Black is more active.} 18. Qxb7 {[%emt 0:02:09]} Bb4 {[%emt 0:00:00]} 19. Rec1 {[%emt 0:23:31]} d3 {[%emt 0:00:00] Some like it hot} (19... Nxe5 $17 20. Nxe5 Qxe5 21. Qxb4 Be2) 20. Bc3 {[%emt 0:08:05]} (20. Qe4 $1 $11 {remains equal.} f5 (20... Bxa2 $2 21. Rxc8 Nxe5 22. Rxf8+ Bxf8 23. Qxe5 $18) 21. Qb7 Nxe5 22. Nxe5 Qxe5 23. Qxb4) 20... Bxc3 $1 {[%emt 0:00:00]} 21. Rxc3 {[%emt 0:00:18] [#]} (21. bxc3 $17 Qc5 (21... Bxa2 $2 22. Qb2 $18) 22. Nd4) 21... Ba6 $2 {[%emt 0:00:00]} ({Black should try} 21... Nxf2 $1 $19 {White must now prevent ...Qc5.} 22. b4 Qd8 23. Qxa7 (23. Kxf2 $2 Qf6 $19) 23... Ne4) 22. Qxa7 $11 {[%emt 0:01:34]} Rxc3 {[%emt 0:00:00]} 23. bxc3 {[%emt 0:00:05]} Qxc3 {[%emt 0:00:00]} 24. Rd1 {[%emt 0:00:48]} Qc2 $36 {[%emt 0:01:13][%csl LRa2,LRd1][%mdl 2048] Black fights for an advantage.} 25. Rd2 {[%emt 0:01:52] [#] White is on the road to losing.} (25. Ra1 $1 $11) 25... Ne5 $1 $19 {[%emt 0:02:36][%cal Bg4e5,Be5d3,Bd3c1][%mdl 544]} 26. Rxc2 {[%emt 0:09:20]} (26. Qxa6 $2 {perishes.} Qc1+ 27. Bf1 Nxf3+ 28. Kg2 Ne1+ (28... Nxd2 $2 29. Bxd3 Qc5 30. Qb7 $19) (28... Qxd2 $2 29. Kxf3 Rd8 30. h3 $19) 29. Kg1 Qxd2 $19) 26... dxc2 {[%emt 0:00:05]} 27. Qxa6 {[%emt 0:00:04]} c1=Q+ {[%emt 0:00:21]} (27... c1=B $2 {is the wrong capture.} 28. Nxe5 g6 29. Qc4 $18) 28. Qf1 {[%emt 0:00:04]} Nd3 {[%emt 0:01:08]} 29. Qxc1 {[%emt 0:01:57]} Nxc1 {[%emt 0:00:01][%mdl 4096] Endgame. KRN-KBN} 30. Bf1 {[%emt 0:00:40]} Nxa2 {[%emt 0:00:09]} 31. Bc4 {[%emt 0:00:06]} Nc3 {[%emt 0:00:08]} 32. Ne5 {[%emt 0:00:14]} Ne4 {[%emt 0:01:12]} 33. Kg2 {[%emt 0:00:13]} Nd6 {[%emt 0:00:06]} 34. Bd5 {[%emt 0:00:38]} g6 {[%emt 0:00:05]} 35. h4 {[%emt 0:00:28]} Kg7 {[%emt 0:00:07]} 36. g4 {[%emt 0:00:31]} Rb8 {[%emt 0:00:57] aiming for ...Rb5.} 37. Nd3 {[%emt 0:00:15]} Rb5 {[%emt 0:00:22]} 38. Bf3 {[%emt 0:00:17]} Rb3 {[%emt 0:00:34]} 39. Nf4 {[%emt 0:00:18]} Kf6 {[%emt 0:00:20]} 40. Nh3 {[%emt 0:00:46]} Ke5 {[%emt 0:00:18]} 41. Bc6 $2 {[%emt 0:02:06]} (41. h5) 41... h6 {[%emt 0:00:20]} 42. Ba8 {[%emt 0:01:43]} Ne8 {[%emt 0:00:42]} 43. Bc6 {[%emt 0:03:12]} Nc7 {[%emt 0:00:27]} 44. Bd7 {[%emt 0:00:37]} (44. Ng1 $142) 44... Nd5 {[%emt 0:00:20]} 45. Be8 {[%emt 0:00:10]} Ke6 {[%emt 0:01:29]} 46. Bc6 {[%emt 0:00:17]} Ne7 {[%emt 0:00:15]} 47. Bf3 {[%emt 0:00:31]} Ke5 {[%emt 0:00:07]} 48. Ba8 $2 {[%emt 0:00:10]} (48. h5 {was necessary.}) 48... f5 {[%emt 0:00:59]} 49. Bf3 {[%emt 0:01:01]} fxg4 {[%emt 0:00:21]} 50. Bxg4 {[%emt 0:00:02]} Nf5 {[%emt 0:00:32]} 51. Bxf5 (51. h5 $19 Nh4+ 52. Kh2) 51... gxf5 {[%emt 0:03:16] KR-KN. Black mates.} 52. f3 {[%emt 0:17:46]} f4 {[%emt 0:00:30]} 53. Kf2 {[%emt 0:00:30]} Rb2+ {[%emt 0:00:30]} 54. Kg1 {[%emt 0:00:30]} Kd4 {[%emt 0:00:00]} 55. Nxf4 {[%emt 0:00:00]} Ke3 $1 {[%emt 0:00:00][%csl LRf3,LRf4]} 56. Ne6 {[%emt 0:00:00]} Kxf3 {[%emt 0:01:30]} 57. h5 {[%emt 0:01:30]} Kg4 {[%emt 0:00:00]} 58. Ng7 {[%emt 0:00:00]} Re2 {[%emt 0:00:00] Weighted Error Value: White=0.47/Black=0.22 (precise) .  Loses game:     	White=2     	---        Missed win:     	---       	Black=1      Mistake:       	White=7     	Black=3      OK:         	White=12    	Black=18     Best:        	White=2     	Black=3      Strong:       	---       	Black=1      Brilliant:      	---       	Black=1} 0-1